{"text_format":"1","workbook":"xlsx","n_sheets":8,"sheets":["Úvod","I. Žadatel","II. Projekt","III. Plán realizace","IV. Rozpočet projektu","V. Zdroje financování","VI. Prohlášení žadatele","Kontrolní seznam "],"not_rendered":{"charts":0,"images":2,"macros":1,"external_links":0,"defined_names":20,"comments":0,"pivot_tables":0},"unopened":[],"bounds":{"document_bytes":16777216,"sheet_cells":100000,"rows_first":2000,"rows_last":500,"rows_between":2000,"halvings":0,"cell_chars":16384,"cell_head_chars":4096},"cells_cut":0,"cells_raw":0,"read":"whole","date_system":"1900"}

{"sheet":"Úvod","index":0,"n_rows":29,"n_cols":6,"rows_kept":29,"cut":false,"hidden":false,"merged":[[10,5,10,9],[8,5,8,7],[9,5,9,9],[27,3,27,7],[0,1,0,7],[1,1,1,8],[7,4,7,7],[20,1,20,2],[13,2,13,7],[23,3,23,4],[11,2,11,7],[12,2,12,7],[28,3,28,7],[20,3,20,6],[23,1,23,2],[26,3,26,7],[25,3,25,7]]}
[]
[null,"Žádost o podporu ze SFŽP ČR podle podmínek Národního programu Životní prostředí"]
[]
[]
[null,null,"NÁRODNÍ PROGRAM ŽIVOTNÍ PROSTŘEDÍ"]
[]
[null,null,"Prioritní oblast:",null,"5. Životní prostředí ve městech a obcích"]
[null,null,"Podoblast podpory:",null,"5. 2 Udržitelná městská doprava a mobilita"]
[null,null,"Podporované aktivity:",null,"5. 2. A - Podpora alternativních způsobů dopravy - Bikesharing","Motivační soutěže a ocenění;"]
[]
[]
[]
[]
[]
[]
[]
[]
[]
[null,"Vyplňuje žadatel"]
[null,"Žadatel:"]
[null,"Předmět podpory:"]
[]
[null,"Vyplňuje SFŽP ČR"]
[null,"Číslo žádosti:"]
[]
[null,"UPOZORNĚNÍ :",null,"Před vyplněním si přečtěte veškerou dokumentaci Programu."]
[null,null,null,"Přečtěte a vyplňte tento formulář s patřičnou péčí."]
[null,null,null,"Vyplňujte pouze zelená pole."]
[null,null,null,"Chybějící informace a přílohy mohou být důvodem k vyřazení žádosti z dalšího hodnocení."]

{"sheet":"I. Žadatel","index":1,"n_rows":35,"n_cols":8,"rows_kept":35,"cut":false,"hidden":false,"merged":[[1,0,1,8],[5,2,6,8],[5,0,7,1],[31,0,31,1],[29,0,29,1],[30,0,30,1],[24,0,24,1],[25,0,25,1],[26,0,26,1],[21,0,21,1],[13,2,13,8],[14,2,14,3],[15,2,15,8],[18,4,18,8],[20,2,20,4],[20,6,20,8],[13,0,15,0],[9,0,12,0],[10,2,10,3],[11,2,11,8],[12,2,12,4],[12,6,12,8],[21,2,21,8],[19,2,19,4],[19,6,19,8],[16,0,16,1],[16,2,16,8],[33,2,33,3],[33,5,33,6],[34,2,34,8],[24,2,24,4],[24,6,24,8],[25,2,25,4],[25,6,25,8],[40,1,40,5],[20,0,20,1],[19,0,19,1],[7,3,7,5],[30,2,30,4],[8,0,8,1],[8,2,8,8],[9,2,9,8],[10,7,10,8],[14,7,14,8],[26,2,26,8],[27,0,27,8],[29,2,29,8],[31,2,31,8],[32,0,34,0],[32,2,32,8]]}
[]
["I. ŽADATEL"]
[]
["1. Základní identifikační údaje"]
[]
["Plný název subjektu\n"]
[]
[null,null,"DIČ:",null,null,null,"IČO:"]
["Právní forma:"]
["Sídlo ","Ulice:"]
[null,"Č. pop.:",null,null,"Č. orient.:",null,"PSČ:"]
[null,"Město:"]
[null,"Okres:",null,null,null,"Kraj:"]
["Doručovací adresa","Ulice:"]
[null,"Č. pop.:",null,null,"Č. orient.:",null,"PSČ:"]
[null,"Město:"]
["ID datové schránky:"]
["2. Statutární zástupce "]
[]
["Jméno:",null,null,null,null,"Příjmení:"]
["Telefon:",null,null,null,null,"Fax:"]
["E-mail:"]
["3. Osoba pověřená jednáním s Fondem "]
[]
["Jméno:",null,null,null,null,"Příjmení:"]
["Telefon:",null,null,null,null,"Fax:"]
["E-mail:"]
["4. Bankovní spojení"]
[]
["Název účtu:"]
["Číslo účtu:",null,null,null,null,"Kód banky:",null,"Měna:"]
["Název banky:"]
["Adresa banky","Ulice:"]
[null,"Č. pop.:",null,null,"Č. orient.:",null,null,"PSČ:"]
[null,"Město:"]

{"sheet":"II. Projekt","index":2,"n_rows":45,"n_cols":11,"rows_kept":45,"cut":false,"hidden":false,"merged":[[0,0,0,8],[7,0,7,8],[12,0,12,3],[16,0,16,1],[16,2,16,3],[13,4,13,10],[16,8,16,10],[2,0,3,10],[9,3,9,7],[9,0,9,2],[12,4,12,10],[16,4,16,7],[44,5,44,8],[65466,0,65466,2],[44,0,44,2],[38,5,38,8],[38,0,38,2],[41,0,41,2],[42,0,42,2],[43,0,43,2],[17,4,17,7],[13,0,13,3],[17,2,17,3],[40,5,40,8],[39,0,39,2],[40,0,40,2],[20,0,20,8],[17,0,17,1],[17,8,17,10],[36,4,37,4],[36,10,37,10],[36,5,37,8],[36,3,37,3],[36,0,37,2],[35,0,35,7],[21,0,33,10]]}
["II. PROJEKT"]
["1. Název projektu"]
[]
[]
[]
["2. Místo realizace"]
[]
["Město(a) - projekt musí být realizován na  území statutárních měst ČR,  v odůvodněných případech je možná realizace rovněž v přilehlých obcích"]
[]
["Obec, město:",null,null,null,null,null,null,null,"PSČ:"]
[]
["3. Časový průběh projektu"]
["Předběžné datum začátku realizace projektu (měsíc a rok):",null,null,null,"Předběžné datum ukončení projektu (měsíc a rok):"]
[]
[]
["4. Výše požadované podpory ze SFŽP ČR"]
["Celkové  výdaje projektu",null,"Celkové způsobilé výdaje ",null,"Požadovaná výše podpory ze SFŽP ČR v Kč",null,null,null,"Požadovaná výše podpory ze SFŽP v % "]
[null,null,{"$f":"'IV. Rozpočet projektu'!D36","v":0},null,{"$f":"'IV. Rozpočet projektu'!D37","v":0},null,null,null,{"$f":"'IV. Rozpočet projektu'!E37","v":0.85}]
[]
["5. Stručný popis projektu"]
["Žadatel zde uvede krátkou anotaci předkládaného projektu v rozsahu cca 5 řádků. "]
[]
[]
[]
[]
[]
[]
[]
[]
[]
[]
[]
[]
[]
[]
["6. Indikátory projektu "]
["Parametr/Závazné indikátory",null,null,"MJ","Počet","Komentář",null,null,null,null,"Je indikátor relevantní?"]
[]
["Počet využitelných jízdních kol ve městě v rámci projektu",null,null,"ks"]
["Počet využitelných míst ve stojanech ve městě v rámci projektu",null,null,"ks"]
["Parametr/Nezávazné indikátory",null,null,"MJ","Počet","Komentář",null,null,null,null,"Je indikátor relevantní?"]
["Zvýšení podílu cyklistické dopravy na přepravních výkonech města",null,null,"%"]
["Počet přeprav v rámci projektu",null,null,"ks"]
["Obrat jízdních kol pořízených v rámci projektu",null,null,"Počet průměrných výpůjček / jízdní kolo / měsíc "]
["Průměrně ujetá vzdálenost na jízdním kole pořízeném v rámci projektu",null,null,"km / jízdní kolo / měsíc"]

{"sheet":"III. Plán realizace","index":3,"n_rows":66,"n_cols":20,"rows_kept":66,"cut":false,"hidden":false,"merged":[[7,7,7,10],[7,3,7,6],[7,0,7,2],[5,0,5,22],[6,0,6,22],[7,19,8,22],[7,11,7,14],[8,1,8,2],[7,15,7,18],[34,1,34,2],[44,1,44,2],[41,1,41,2],[39,1,39,2],[36,1,36,2],[43,1,43,2],[29,1,29,2],[30,1,30,2],[25,1,25,2],[26,1,26,2],[48,1,48,2],[37,1,37,2],[38,1,38,2],[35,1,35,2],[47,1,47,2],[46,1,46,2],[45,1,45,2],[42,1,42,2],[40,1,40,2],[31,1,31,2],[32,1,32,2],[33,1,33,2],[9,19,9,22],[10,19,10,22],[11,19,11,22],[24,19,24,22],[15,19,15,22],[16,19,16,22],[12,19,12,22],[23,19,23,22],[13,19,13,22],[14,19,14,22],[17,19,17,22],[18,19,18,22],[19,19,19,22],[20,19,20,22],[9,1,9,2],[10,1,10,2],[11,1,11,2],[22,1,22,2],[21,1,21,2],[12,1,12,2],[17,1,17,2],[28,19,28,22],[24,1,24,2],[13,1,13,2],[14,1,14,2],[15,1,15,2],[16,1,16,2],[19,1,19,2],[20,1,20,2],[18,1,18,2],[23,1,23,2],[27,1,27,2],[28,1,28,2],[21,19,21,22],[22,19,22,22],[25,19,25,22],[26,19,26,22],[27,19,27,22],[37,19,37,22],[38,19,38,22],[45,19,45,22],[29,19,29,22],[30,19,30,22],[35,19,35,22],[36,19,36,22],[39,19,39,22],[40,19,40,22],[32,19,32,22],[33,19,33,22],[34,19,34,22],[31,19,31,22],[47,19,47,22],[41,19,41,22],[42,19,42,22],[43,19,43,22],[44,19,44,22],[46,19,46,22]]}
["III. PLÁN REALIZACE"]
[]
["2. Trvání projektu a plán jeho realizace"]
[]
[]
["Poznámky:  Indikativní plán projektu by neměl obsahovat skutečná data, ale měl by začínat \"čtvrtletí 1\", \"čtvrtletí 2\", atd.. Žadatelé by měli do navrhovaného plánu začlenit určitou časovou rezervu. Plán projektu by neměl obsahovat podrobný popis aktivit, ale pouze jejich názvy. I čtvrtletí, ve kterých se neuskuteční žádné aktivity, musí být zahrnuto do plánu projektu a doby trvání projektu.\n"]
["Terminologie: Po termínu zahájení realizace může Fond akceptovat žádost pouze v odůvodněných případech, odsouhlasených ministrem. Za termín zahájení realizace stavby se považuje den, kdy je objednavatelem předáno dodavateli staveniště se zpracováním protokolu o předání staveniště. U nestavebních akcí se za termín zahájení považuje den uzavření smlouvy o dílo. Za termín dokončení stavby se považuje den, kdy je na stavbu vydán kolaudační souhlas  podle příslušných ustanovení stavebního zákona v platném znění, resp. datum z předávacího protokolu  o ukončení akce. "]
["Aktivita",null,null,2017,null,null,null,2018,null,null,null,2019,null,null,null,2020,null,null,null,"Poznámka (specifikace)"]
["Číslo","Název",null,1,2,3,4,1,2,3,4,1,2,3,4,1,2,3,4]
[1]
[1]
[{"$f":"A10+1","v":2}]
[2]
[3]
[3]
[4]
[4]
[5]
[5]
[6]
[6]
[7]
[7]
[8]
[8]
[9]
[9]
[10]
[10]
[11]
[11]
[12]
[12]
[13]
[13]
[14]
[14]
[15]
[15]
[16]
[16]
[17]
[17]
[18]
[18]
[19]
[19]
[20]
[20,{"$f":"IF(ISBLANK(B48),\" \",B48)","v":" "}]
[]
[]
[]
["ZDROJ DAT PRO TABULKU-PROSÍM NEMAŽTE, NETISKNĚTE:"]
[]
[]
["Příprava projektu"]
["Zadávací řízení"]
["Zahájení realizace projektu (uzavření smlouvy, zahájení aktivit předmětu podpory)"]
["Realizace projektu"]
["Ukončení realizace projektu (převzetí vybavení, ukončení aktivit předmětu podpory)"]
["Závěrečné vyhodnocení projektu"]
["Zkušební provoz"]
["Provoz"]
["Publicita"]
["Udržitelnost projektu"]
["Jiná aktivita"]

{"sheet":"IV. Rozpočet projektu","index":4,"n_rows":53,"n_cols":21,"rows_kept":53,"cut":false,"hidden":false,"merged":[[42,4,42,13],[43,4,43,10],[3,0,3,4],[3,5,3,8],[3,9,3,12],[3,13,3,16],[41,4,41,10],[0,18,0,20],[2,17,2,20],[3,17,3,20],[0,1,0,4],[0,10,0,12],[0,14,0,16],[2,0,2,1],[2,5,2,8],[2,9,2,12],[2,13,2,16],[2,2,2,3]]}
[null,"IV. ROZPOČET PROJEKTU"]
[]
["zde doplňte název projektu",null,"Celkem",null,null,2017,null,null,null,2018,null,null,null,2019,null,null,null,2020]
["V rozpočtu lze v případě potřeby přidávat řádky, vždy je nutno specifikovat."]
["Kód výdaje","Název výdaje","% z celkových způsobilých výdajů","Výdaje celkem\n(v Kč)","Měrná jednotka","Počet jednotek","Jednotková cena bez DPH (v Kč)","Sazba DPH (%)","Cena celkem včetně DPH (v Kč) *","Počet jednotek","Jednotková cena bez DPH (v Kč)","Sazba DPH (%)","Cena celkem včetně DPH (v Kč) *","Počet jednotek","Jednotková cena bez DPH (v Kč)","Sazba DPH (%)","Cena celkem včetně DPH (v Kč) *","Počet jednotek","Jednotková cena bez DPH (v Kč)","Sazba DPH (%)","Cena celkem včetně DPH (v Kč) *"]
["01","Projektová příprava (maximálně do výše 10% z celkových způsobilých výdajů)",{"$f":"IFERROR(D6/D36,10)","v":10},{"$f":"I6+M6+Q6+U6","v":0},null,null,null,null,{"$f":"SUM(I7:I8)","v":0},null,null,null,{"$f":"SUM(M7:M8)","v":0},null,null,null,{"$f":"SUM(Q7:Q8)","v":0},null,null,null,{"$f":"SUM(U7:U8)","v":0}]
["#","# konkrétní položka ze soupisu*",null,0,null,null,null,null,{"$f":"ROUND((F7*(G7*(H7/100)+G7)),0)","v":0},null,null,null,{"$f":"ROUND((J7*(K7*(L7/100)+K7)),0)","v":0},null,null,null,{"$f":"ROUND((N7*(O7*(P7/100)+O7)),0)","v":0},null,null,null,{"$f":"ROUND((R7*(S7*(T7/100)+S7)),0)","v":0}]
["#","# konkrétní položka ze soupisu*",null,0,null,null,null,null,{"$f":"ROUND((F8*(G8*(H8/100)+G8)),0)","v":0},null,null,null,{"$f":"ROUND((J8*(K8*(L8/100)+K8)),0)","v":0},null,null,null,{"$f":"ROUND((N8*(O8*(P8/100)+O8)),0)","v":0},null,null,null,{"$f":"ROUND((R8*(S8*(T8/100)+S8)),0)","v":0}]
["02","Nákup nových jízdních kol (maximálně v hodnotě 20 tis. Kč/jedno jízdní kolo včetně příslušenství)",{"$f":"IFERROR(D9/D36,\"\")","v":""},0,null,null,null,null,{"$f":"I10+I13","v":0},null,null,null,{"$f":"M10+M13","v":0},null,null,null,{"$f":"Q10+Q13","v":0},null,null,null,{"$f":"U10+U13","v":0}]
["02.01","Jízdní kola",null,0,null,null,null,null,{"$f":"SUM(I11:I12)","v":0},null,null,null,{"$f":"SUM(M11:M12)","v":0},null,null,null,{"$f":"SUM(Q11:Q12)","v":0},null,null,null,{"$f":"SUM(U11:U12)","v":0}]
["#","# konkrétní položka ze soupisu*",null,0,null,null,null,null,{"$f":"ROUND((F11*(G11*(H11/100)+G11)),0)","v":0},null,null,null,{"$f":"ROUND((J11*(K11*(L11/100)+K11)),0)","v":0},null,null,null,{"$f":"ROUND((N11*(O11*(P11/100)+O11)),0)","v":0},null,null,null,{"$f":"ROUND((R11*(S11*(T11/100)+S11)),0)","v":0}]
["#","# konkrétní položka ze soupisu*",null,0,null,null,null,null,{"$f":"ROUND((F12*(G12*(H12/100)+G12)),0)","v":0},null,null,null,{"$f":"ROUND((J12*(K12*(L12/100)+K12)),0)","v":0},null,null,null,{"$f":"ROUND((N12*(O12*(P12/100)+O12)),0)","v":0},null,null,null,{"$f":"ROUND((R12*(S12*(T12/100)+S12)),0)","v":0}]
["02.02","Povinné příslušenství",null,0,null,null,null,null,{"$f":"SUM(I14:I15)","v":0},null,null,null,{"$f":"SUM(M14:M15)","v":0},null,null,null,{"$f":"SUM(Q14:Q15)","v":0},null,null,null,{"$f":"SUM(U14:U15)","v":0}]
["#","# konkrétní položka ze soupisu*",null,0,null,null,null,null,{"$f":"ROUND((F14*(G14*(H14/100)+G14)),0)","v":0},null,null,null,{"$f":"ROUND((J14*(K14*(L14/100)+K14)),0)","v":0},null,null,null,{"$f":"ROUND((N14*(O14*(P14/100)+O14)),0)","v":0},null,null,null,{"$f":"ROUND((R14*(S14*(T14/100)+S14)),0)","v":0}]
["#","# konkrétní položka ze soupisu*",null,0,null,null,null,null,{"$f":"ROUND((F15*(G15*(H15/100)+G15)),0)","v":0},null,null,null,{"$f":"ROUND((J15*(K15*(L15/100)+K15)),0)","v":0},null,null,null,{"$f":"ROUND((N15*(O15*(P15/100)+O15)),0)","v":0},null,null,null,{"$f":"ROUND((R15*(S15*(T15/100)+S15)),0)","v":0}]
["03","Výdaje spojené s instalací stojanů na jízdní kola",{"$f":"IFERROR(D16/D36,\"\")","v":""},0,null,null,null,null,{"$f":"I17+I20+I23","v":0},null,null,null,{"$f":"M17+M20+M23","v":0},null,null,null,{"$f":"Q17+Q20+Q23","v":0},null,null,null,{"$f":"U17+U20+U23","v":0}]
["03.01","Stavební práce",null,{"$f":"I17+M17+Q17+17","v":17},null,null,null,null,{"$f":"SUM(I18:I19)","v":0},null,null,null,{"$f":"SUM(M18:M19)","v":0},null,null,null,{"$f":"SUM(Q18:Q19)","v":0},null,null,null,{"$f":"SUM(U18:U19)","v":0}]
["#","# konkrétní položka ze soupisu*",null,{"$f":"I18+M18+Q18+U18","v":0},null,null,null,null,{"$f":"ROUND((F18*(G18*(H18/100)+G18)),0)","v":0},null,null,null,{"$f":"ROUND((J18*(K18*(L18/100)+K18)),0)","v":0},null,null,null,{"$f":"ROUND((N18*(O18*(P18/100)+O18)),0)","v":0},null,null,null,{"$f":"ROUND((R18*(S18*(T18/100)+S18)),0)","v":0}]
["#","# konkrétní položka ze soupisu*",null,0,null,null,null,null,{"$f":"ROUND((F19*(G19*(H19/100)+G19)),0)","v":0},null,null,null,{"$f":"ROUND((J19*(K19*(L19/100)+K19)),0)","v":0},null,null,null,{"$f":"ROUND((N19*(O19*(P19/100)+O19)),0)","v":0},null,null,null,{"$f":"ROUND((R19*(S19*(T19/100)+S19)),0)","v":0}]
["03.02","Výdaje na dopravu",null,0,null,null,null,null,{"$f":"SUM(I21:I22)","v":0},null,null,null,{"$f":"SUM(M21:M22)","v":0},null,null,null,{"$f":"SUM(Q21:Q22)","v":0},null,null,null,{"$f":"SUM(U21:U22)","v":0}]
["#","# konkrétní položka ze soupisu*",null,0,null,null,null,null,{"$f":"ROUND((F21*(G21*(H21/100)+G21)),0)","v":0},null,null,null,{"$f":"ROUND((J21*(K21*(L21/100)+K21)),0)","v":0},null,null,null,{"$f":"ROUND((N21*(O21*(P21/100)+O21)),0)","v":0},null,null,null,{"$f":"ROUND((R21*(S21*(T21/100)+S21)),0)","v":0}]
["#","# konkrétní položka ze soupisu*",null,0,null,null,null,null,{"$f":"ROUND((F22*(G22*(H22/100)+G22)),0)","v":0},null,null,null,{"$f":"ROUND((J22*(K22*(L22/100)+K22)),0)","v":0},null,null,null,{"$f":"ROUND((N22*(O22*(P22/100)+O22)),0)","v":0},null,null,null,{"$f":"ROUND((R22*(S22*(T22/100)+S22)),0)","v":0}]
["03.03","Další činnosti",null,0,null,null,null,null,{"$f":"SUM(I24)","v":0},null,null,null,{"$f":"SUM(M24)","v":0},null,null,null,{"$f":"SUM(Q24)","v":0},null,null,null,{"$f":"SUM(U24)","v":0}]
["#","# konkrétní položka ze soupisu*",null,0,null,null,null,null,{"$f":"ROUND((F24*(G24*(H24/100)+G24)),0)","v":0},null,null,null,{"$f":"ROUND((J24*(K24*(L24/100)+K24)),0)","v":0},null,null,null,{"$f":"ROUND((N24*(O24*(P24/100)+O24)),0)","v":0},null,null,null,{"$f":"ROUND((R24*(S24*(T24/100)+S24)),0)","v":0}]
["04","Pořízení stojanů na jízdní kola",{"$f":"IFERROR(D25/D36,\"\")","v":""},0,null,null,null,null,{"$f":"I26+I28+I30","v":0},null,null,null,{"$f":"M26+M28+M30","v":0},null,null,null,{"$f":"Q26+Q28+Q30","v":0},null,null,null,{"$f":"U26+U28+U30","v":0}]
["04.01","Výdaje za nákup stojanů",null,0,null,null,null,null,{"$f":"SUM(I27)","v":0},null,null,null,{"$f":"SUM(M27)","v":0},null,null,null,{"$f":"SUM(Q27)","v":0},null,null,null,{"$f":"SUM(U27)","v":0}]
["#","# konkrétní položka ze soupisu*",null,0,null,null,null,null,{"$f":"ROUND((F27*(G27*(H27/100)+G27)),0)","v":0},null,null,null,{"$f":"ROUND((J27*(K27*(L27/100)+K27)),0)","v":0},null,null,null,{"$f":"ROUND((N27*(O27*(P27/100)+O27)),0)","v":0},null,null,null,{"$f":"ROUND((R27*(S27*(T27/100)+S27)),0)","v":0}]
["04.01.02","Výdaje za příslušenství",null,0,null,null,null,null,{"$f":"SUM(I29)","v":0},null,null,null,{"$f":"SUM(M29)","v":0},null,null,null,{"$f":"SUM(Q29)","v":0},null,null,null,{"$f":"SUM(U29)","v":0}]
["#","# konkrétní položka ze soupisu*",null,0,null,null,null,null,{"$f":"ROUND((F29*(G29*(H29/100)+G29)),0)","v":0},null,null,null,{"$f":"ROUND((J29*(K29*(L29/100)+K29)),0)","v":0},null,null,null,{"$f":"ROUND((N29*(O29*(P29/100)+O29)),0)","v":0},null,null,null,{"$f":"ROUND((R29*(S29*(T29/100)+S29)),0)","v":0}]
["04.01.03","Ostatní výdaje spouvisející s pořízením stojanů",null,0,null,null,null,null,{"$f":"SUM(I31)","v":0},null,null,null,{"$f":"SUM(M31)","v":0},null,null,null,{"$f":"SUM(Q31)","v":0},null,null,null,{"$f":"SUM(U31)","v":0}]
["#","# konkrétní položka ze soupisu*",null,0,null,null,null,null,{"$f":"ROUND((F31*(G31*(H31/100)+G31)),0)","v":0},null,null,null,{"$f":"ROUND((J31*(K31*(L31/100)+K31)),0)","v":0},null,null,null,{"$f":"ROUND((N31*(O31*(P31/100)+O31)),0)","v":0},null,null,null,{"$f":"ROUND((R31*(S31*(T31/100)+S31)),0)","v":0}]
["05","Výdaje na publicitu (do výše max. 5 % z celkových způsobilých výdajů)",{"$f":"IFERROR(D32/D36,5)","v":5},0,null,null,null,null,{"$f":"SUM(I33:I34)","v":0},null,null,null,{"$f":"M33+M34","v":0},null,null,null,{"$f":"SUM(Q33:Q34)","v":0},null,null,null,{"$f":"SUM(U33:U34)","v":0}]
["#","# konkrétní položka ze soupisu*",null,0,null,null,null,null,{"$f":"ROUND((F33*(G33*(H33/100)+G33)),0)","v":0},null,null,null,{"$f":"ROUND((J33*(K33*(L33/100)+K33)),0)","v":0},null,null,null,{"$f":"ROUND((N33*(O33*(P33/100)+O33)),0)","v":0},null,null,null,{"$f":"ROUND((R33*(S33*(T33/100)+S33)),0)","v":0}]
["#","# konkrétní položka ze soupisu*",null,0,null,null,null,null,{"$f":"ROUND((F34*(G34*(H34/100)+G34)),0)","v":0},null,null,null,{"$f":"ROUND((J34*(K34*(L34/100)+K34)),0)","v":0},null,null,null,{"$f":"ROUND((N34*(O34*(P34/100)+O34)),0)","v":0},null,null,null,{"$f":"ROUND((R34*(S34*(T34/100)+S34)),0)","v":0}]
[]
[null,"Celkové způsobilé výdaje projektu",null,{"$f":"D6+D9+D16+D25+D32","v":0},"Podíl v %",null,null,null,{"$f":"I6+I9+I16+I25+I32","v":0},null,null,null,{"$f":"M6+M9+M16+M25+M32","v":0},null,null,null,{"$f":"Q6+Q9+Q16+Q25+Q32","v":0},null,null,null,{"$f":"U6+U9+U16+U25+U32","v":0}]
[null,"Požadovaná výše podpory ze SFŽP ČR ",null,{"$f":"D36*$E$37","v":0},0.85,null,null,null,{"$f":"I36*$E$37","v":0},null,null,null,{"$f":"M36*$E$37","v":0},null,null,null,{"$f":"Q36*$E$37","v":0},null,null,null,{"$f":"U36*$E$37","v":0}]
[null,"Vlastní zdroje žadatele",null,{"$f":"D36*$E$38","v":0},{"$f":"1-E37","v":0.15000000000000002},null,null,null,{"$f":"I36*$E$38","v":0},null,null,null,{"$f":"M36*$E$38","v":0},null,null,null,{"$f":"Q36*$E$38","v":0},null,null,null,{"$f":"U36*$E$38","v":0}]
[]
[]
[]
[null,null,null,null,"*Žadatel vloží potřebný počet řádku, přičemž je povinen zkontrolovat, zda se přidané hodnoty řádně sčítají. "]
[]
[null,null,null,null,"V případě, že žadatel je plátce DPH a uplatňuje nárok na vrácení DPH, musí uvádět do rozpočtu ceny bez DPH. "]
[]
[]
[null,"V …………………..dne………………."]
[]
[]
[]
[]
[null,"Jméno a příjmení zpracovatele",null,null,null,null,null,null,"Jméno a příjmení statutárního zástupce"]
[null,"funkce ",null,null,null,null,null,null,"funkce"]

{"sheet":"V. Zdroje financování","index":5,"n_rows":16,"n_cols":10,"rows_kept":16,"cut":false,"hidden":false,"merged":[[25,1,25,3],[25,4,25,8],[20,1,20,3],[20,4,20,8],[23,1,23,3],[23,4,23,8],[24,1,24,3],[24,4,24,8],[21,1,21,3],[21,4,21,8],[17,1,17,3],[17,4,17,8],[18,1,18,3],[18,4,18,8],[19,1,19,3],[19,4,19,8],[16,4,16,8],[22,1,22,3],[22,4,22,8],[0,0,0,10],[14,1,14,9],[16,1,16,3],[3,0,3,9],[5,1,6,3],[5,4,5,5],[7,2,7,3],[8,1,9,1],[8,2,9,2],[11,0,11,9],[13,1,13,9],[15,1,15,3],[15,4,15,8]]}
["V. PŘEDPOKLAD FINANCOVÁNÍ"]
[]
[]
["V.1  ROZDĚLENÍ ZPŮSOBILÝCH VÝDAJŮ"]
[]
[null,null,null,null,"Celkem"]
[null,null,null,null,"v Kč","%"]
[null,1,"Celkové způsobilé výdaje",null,{"$f":"'IV. Rozpočet projektu'!D36","v":0},1]
[null,2,"z toho","investiční výdaje",12,{"$f":"E9/E8","v":{"$error":"#DIV/0!"}}]
[null,null,null,"neinvestiční výdaje",12,{"$f":"E10/E8","v":{"$error":"#DIV/0!"}}]
[]
["V.2 OSTATNÍ ŽÁDOSTI ŽADATELE"]
[]
[null,"Žádosti o poskytnutí grantu či jiné podpory, které byly v tomto roce předloženy (nebo budou předloženy) evropským institucím, ostatním členským státům EU, státnímu rozpočtu ČR  či z jiných národních zdrojů:"]
[]
[null,"Název projektu a identifikační číslo",null,null,"Název zdroje a dotačního programu",null,null,null,null,"Částka (CZE)"]

{"sheet":"VI. Prohlášení žadatele","index":6,"n_rows":26,"n_cols":3,"rows_kept":26,"cut":false,"hidden":false,"merged":[[0,0,0,5],[2,0,2,5],[3,0,3,5],[4,0,4,5],[5,0,5,5],[6,0,6,3],[7,0,7,3],[8,0,8,5],[9,0,9,5],[10,0,10,5],[11,0,11,5],[12,0,12,5],[13,0,13,5],[14,0,14,5],[15,0,15,5],[16,2,16,5],[17,2,17,5],[18,2,18,5],[25,1,25,5],[19,0,19,5],[20,0,20,5],[21,0,21,5],[22,1,22,5],[23,1,23,5],[24,1,24,5]]}
["VI.  PROHLÁŠENÍ ŽADATELE"]
[]
["1. Já, níže podepsaný(á), jsem statutárním zástupcem žadatele, osobou odpovědnou za předkládaný projekt, a s vědomím možných právních důsledků prohlašuji tímto, že:"]
["(a)  informace uvedené v této žádosti jsou úplné a správné;  "]
["(b) organizace žadatele a spolupracující organizace (tam, kde je to vhodné) splňují podmínky pro žadatele v tomto  programu;"]
["(c) žadatel disponuje dostatečnými finančními a odbornými zdroji nezbytnými pro úspěšnou realizaci tohoto projektu;"]
["(d) opatření na realizaci akce bude vedeno v účetnictví žadatele jako *:"]
["(e)  plátcem daně z přidané hodnoty vzhledem k předmětu podpory :"]
["(f) souhlasím se zveřejněním údajů o žadateli, předmětu podpory a výši podpory;                                "]
["(g) žadatel nemá dluhy vůči veřejné správě a zdravotním pojišťovnám;"]
["(h)  jsem si vědom, že projekt může být spolufinancován z jiných veřejných zdrojů, přičemž celkové výdaje včetně spolufinancování nesmí přesáhnout 100 % způsobilých výdajů;"]
["(ch) jsem osobou s oprávněním jednat v této věci jménem Žadatele."]
["* V případě kombinace žadatel zvolí převažující charakter výdajů. Kromě účetních operací Fondu se toto označení promítá i do akceptačního čísla Žádosti, které nelze měnit."]
["2. Dále prohlašuji"]
["Prohlašuji, že jsem se seznámil/a s podmínkami poskytování dotace podle Národního programu Životní prostředí (dále jen \"Program\") a Směrnice MŽP č. 4/2015 o poskytnutí finančních prostředků ze Státního fondu životního prostředí ČR v rámci tohoto Programu, jakož i s příslušnou vyhlášenou Výzvou. Porozuměl/a jsem jejich obsahu a mnou uvedené údaje jsou pravdivé. Jsem si vědom/a, že uvedení nepravdivých údajů bude znamenat ztrátu příspěvku a postih ve smyslu platných právních předpisů. \n\nSouhlasím se zařazením do databáze poskytovatele a zveřejněním identifikačních údajů organizace, adresy, dotačního titulu, účelového určení podpory a výše poskytnuté podpory."]
["3.  Já, níže podepsaný(á), jakožto statutární zástupce žadatele, zplnomocňuji kontaktní osobu uvedenou na listu I. této žádosti k jednání se SFŽP ČR ohledně předloženého projektu, s výhradou podpisu smlouvy o poskytnutí podpory ze SFŽP ČR."]
["4. Veřejná podpora"]
["Prohlašuji, že:1",null,"Podpora nenaplňuje definiční znaky veřejné podpory dle čl. 107 odst. 1 Smlouvy o fungování Evropské unie. "]
[null,null,"O podporu žádám v režimu Podpory malého rozsahu (de minimis) dle Nařízení komise (EU) č. 1407/2013 ze dne 18. 12. 2013, o použití článků 107 a 108 Smlouvy o fungování Evropské unie na podporu de minimis."]
["1 Lze vybrat pouze jednu z uvedených možností. Podpora je poskytnutá dnem vydání právního aktu, jímž příjemce získal na podporu právní nárok. Za tento den je považován v NPŽP podpis Smlouvy o poskytnutí podpory ze Státního fondu životního prostředí České republiky. Zde žadatelem uvedená volba má proto informační charakter a lze ji v případě potřeby změnit. "]
["5. Prohlášení ke zpracování osobních údajů:"]
["Souhlasím se zpracováním osobních údajů obsažených v této žádosti ve smyslu zákona č. 101/2000 Sb., o ochraně osobních údajů, ve znění pozdějších předpisů, za účelem tohoto dotačního programu v souladu se zákonem č. 215/2004 Sb., o úpravě některých vztahů v oblasti veřejné podpory a o změně zákona o podpoře výzkumu a vývoje, ve znění pozdějších předpisů. Tento souhlas uděluji správci a zpracovateli, Státnímu fondu životního prostředí ČR, pro všechny údaje obsažené v tomto prohlášení, a to po celou dobu 10 let ode dne udělení souhlasu. Zároveň jsem si vědom/a svých práv podle zákona č. 101/2000 Sb., o ochraně osobních údajů. Všechny uvedené údaje jsou přesné a pravdivé a jsou poskytovány dobrovolně."]
["Jméno statutárního zástupce:"]
["Funkce : "]
["Podpis (razítko):"]
["Datum a místo:"]

{"sheet":"Kontrolní seznam ","index":7,"n_rows":24,"n_cols":3,"rows_kept":24,"cut":false,"hidden":false,"merged":[[1,0,1,13],[7,2,7,12],[8,2,8,12],[9,2,9,12],[14,2,14,12],[3,0,3,9],[5,0,5,4],[16,2,16,12],[15,2,15,13],[23,2,26,12],[17,2,18,12],[19,2,20,12],[21,2,22,12]]}
[]
["Kontrolní seznam"]
[]
["Před odesláním si zkontrolujte, zda je Vaše žádost úplná."]
[]
["a) Formulář žádosti o poskytnutí dotace"]
[]
[null,null,"Žádost je vyplněna na předepsaném formuláří žádosti a je kompletně vyplněna. "]
[null,null,"K formuláři žádosti jsou přiloženy všechny požadované přílohy."]
[null,null,"Elektronická forma žádosti včetně příloh na nosiči CD je přiložena."]
[]
[]
["b) Požadované přílohy: "]
[]
[null,null,"Podrobný popis realizace projektu."]
[null,null,"Strategie rozvoje projektu"]
[null,null,"Doklad o právní subjektivitě žadatele (doklad o přidělení IČ) -  originál nebo ověřená kopie ne starší 90 dnů."]
[null,null,"Dokumenty, prokazující zvolení příslušné osoby do funkce statutárního zástupce (v případě územních a samosprávných celků výpis z usnesení zastupitelstva) a dokládající způsob jednání žadatele."]
[]
[null,null,"Kopie smluv s jinými subjekty a strategickými partnery dokládající budoucí spolupráci na projektu (v rámci doby udržitelnosti) – je-li to relevantní."]
[]
[null,null,"Doklad, že předmět podpory nebude využíván k podnikání (např. ve formě čestného prohlášení). "]
[]
[null,null,"Na základě této žádosti bude žadatel zařazen do Programu. \n\nŽadatel umožní pracovníkům Fondu kontrolu na místě (v období od předložení žádosti do závěrečného vyhodnocení akce). \n\nVyplácení podpory probíhá na základě samostatné Žádosti o uvolnění finančních prostředků ze SFŽP ČR, resp. po podpisu smlouvy.\n\n "]